bitfinex/quotes_SOLUSD_20260228
["timestamp","ask_amount","ask_price","bid_price","bid_amount"]
[1772316062385,4.36692522,84.847,84.8,8.02228836]
[1772316062386,4.36692522,84.829,84.79,8.02228836]
[1772316062713,4.36692522,84.829,84.791,3.76725843]
[1772316063090,41.25023571,84.848,84.765,3.76725843]
[1772316063091,4.36692522,84.809,84.765,3.76725843]
[1772316063301,4.36692522,84.809,84.771,3.76725843]
[1772316064009,4.36692522,84.809,84.74,3.69383402]
[1772316064010,4.36692522,84.777,84.717,3.76725843]
[1772316064208,4.36692522,84.777,84.66,8.22228836]
[1772316064209,4.36692522,84.749,84.711,3.76725843]
[1772316065292,4.36692522,84.749,84.702,3.76725843]
[1772316065493,4.36692522,84.739,84.691,3.76725843]
[1772316065914,4.36692522,84.739,84.7,8.02228836]
[1772316066114,4.36692522,84.737,84.7,8.02228836]
[1772316066616,4.36692522,84.737,84.7,3.76725843]
[1772316066811,4.36692522,84.737,84.67,1.18105586]
[1772316066812,4.36692522,84.719,84.67,1.18105586]
[1772316067011,4.36692522,84.709,84.671,3.76725843]
[1772316067215,4.36692522,84.719,84.681,3.76725843]
[1772316068113,11.80386694,84.718,84.683,3.76725843]
[1772316068647,16.17079216,84.718,84.683,3.76725843]
[1772316069313,4.36692522,84.717,84.683,3.76725843]
[1772316070197,11.80329375,84.723,84.685,3.76725843]
[1772316070620,4.36692522,84.719,84.679,3.76725843]
[1772316070919,16.16508234,84.759,84.711,3.76725843]
[1772316071123,16.16508234,84.759,84.73,8.02228836]
[1772316071423,16.16508234,84.759,84.725,3.76725843]
[1772316071603,16.16508234,84.759,84.73,8.02228836]
[1772316072455,11.79748465,84.764,84.731,3.76725843]
[1772316073240,8.02228836,84.946,84.73,8.02228836]
[1772316073241,11.79440001,84.786,84.751,3.76725843]
[1772316074439,16.16132523,84.786,84.752,11.79913158]
[1772316075244,4.36692522,84.795,84.761,3.76725843]
[1772316076838,4.36692522,84.795,84.762,11.79773955]
[1772316077043,4.46906367,84.814,84.78,8.02228836]
[1772316077243,4.46906367,84.808,84.771,3.76725843]
[1772316077745,4.46906367,84.799,84.76,8.02228836]
[1772316079225,4.46906367,84.797,84.76,8.02228836]
[1772316079536,4.46906367,84.795,84.76,8.02228836]
[1772316079929,4.46906367,84.793,84.76,8.02228836]
[1772316080248,4.46906367,84.791,84.76,8.02228836]
[1772316080928,4.46906367,84.789,84.75,8.02228836]
[1772316081241,4.46906367,84.787,84.75,8.02228836]
[1772316081444,4.46906367,84.785,84.75,8.02228836]
[1772316081751,4.46906367,84.779,84.742,11.80052394]
[1772316082246,4.46906367,84.777,84.741,15.5677858]
[1772316083943,4.46906367,84.775,84.741,11.80052737]
[1772316084145,4.46906367,84.773,84.73,8.02228836]
[1772316084350,4.46906367,84.771,84.74,8.02228836]
[1772316085041,4.46906367,84.769,84.74,8.02228836]
[1772316086444,4.46906367,84.767,84.72,11.78954679]
[1772316086638,4.46906367,84.767,84.721,3.76725843]
[1772316087549,4.46906367,84.765,84.722,11.80330964]
[1772316088242,4.46906367,84.765,84.721,3.76725843]
[1772316088243,4.46906367,84.759,84.721,3.76725843]
[1772316088445,4.46906367,84.759,84.721,11.80344896]
[1772316089151,4.46906367,84.759,84.73,8.02228836]
[1772316089731,4.46906367,84.759,84.731,15.56931434]
[1772316090055,4.46906367,84.757,84.723,3.76725843]
[1772316090346,4.46906367,84.757,84.73,8.02228836]
[1772316090945,4.46906367,84.757,84.73,11.78954679]
[1772316091250,4.46906367,84.757,84.73,23.59683553]
[1772316094256,11.79857473,84.756,84.73,23.59683553]
[1772316095153,4.46906367,84.755,84.723,3.76725843]
[1772316096767,4.46906367,84.776,84.741,3.76725843]
[1772316096936,4.46906367,84.776,84.751,3.76725843]
[1772316097137,4.46906367,84.783,84.751,3.76725843]
[1772316097433,11.79495948,84.782,84.753,3.76725843]
[1772316097950,11.79407853,84.789,84.753,3.76725843]
[1772316098352,4.46906367,84.788,84.753,3.76725843]
[1772316099336,4.46906367,84.786,84.753,3.76725843]
[1772316099549,4.46906367,84.786,84.754,11.79885315]
[1772316099756,4.46906367,84.786,84.754,15.56611158]
[1772316099942,4.46906367,84.786,84.747,3.76725843]
[1772316100145,4.46906367,84.784,84.742,11.80051567]
[1772316100339,41.27991319,84.787,84.736,11.80125282]
[1772316100340,4.46906367,84.779,84.736,11.80125282]
[1772316100553,4.46906367,84.777,84.736,11.80125282]
[1772316100737,4.46906367,84.775,84.736,11.80125282]
[1772316101052,4.46906367,84.773,84.736,11.80125282]
[1772316101253,4.46906367,84.771,84.736,15.56851125]
[1772316101454,4.46906367,84.759,84.72,8.027517]
[1772316101941,4.46906367,84.758,84.72,8.027517]
[1772316102553,4.46906367,84.756,84.72,19.83104835]
[1772316102857,4.46906367,84.756,84.721,3.76725843]
[1772316103251,4.46906367,84.749,84.71,8.027517]
[1772316103453,4.46906367,84.749,84.711,3.76725843]
[1772316104452,4.46906367,84.749,84.72,8.027517]
[1772316104654,11.79968848,84.748,84.72,8.027517]
[1772316104849,4.49048196,84.747,84.72,8.027517]
[1772316107255,4.2967318,84.745,84.719,3.76725843]
[1772316107563,4.2967318,84.745,84.712,3.76725843]
[1772316108055,4.2967318,84.745,84.701,11.80623605]
[1772316108351,4.2967318,84.745,84.691,0.5]
[1772316108352,4.2967318,84.729,84.691,11.80757303]
[1772316108657,4.2967318,84.719,84.682,3.76725843]
[1772316110057,1.18006631,84.778,84.66,0.2]
[1772316110058,4.2967318,84.727,84.701,3.76725843]
[1772316110546,4.2967318,84.727,84.691,3.76725843]
[1772316110958,4.2967318,84.727,84.683,41.33060944]
[1772316111150,4.2967318,84.719,84.677,3.76725843]
[1772316111453,4.2967318,84.709,84.673,11.81014018]
[1772316112248,4.2967318,84.707,84.669,3.76725843]
[1772316112441,4.2967318,84.707,84.663,11.81145572]
[1772316112872,4.2967318,84.699,84.661,3.76725843]
[1772316113039,4.2967318,84.699,84.661,15.5790726]
[1772316113546,4.2967318,84.699,84.662,3.76725843]
[1772316113957,4.2967318,84.689,84.66,0.2]
[1772316114158,4.2967318,84.679,84.65,0.2]
[1772316114468,4.2967318,84.659,84.63,0.2]
[1772316114653,4.2967318,84.649,84.619,3.69383402]
[1772316115162,4.2967318,84.649,84.611,3.76725843]
[1772316115555,4.2967318,84.649,84.604,11.81976989]
[1772316115859,4.2967318,84.649,84.611,11.81876693]
[1772316116269,4.2967318,84.647,84.611,11.81876693]
[1772316116563,8.027517,84.64,84.591,3.76725843]
[1772316116760,4.2967318,84.629,84.591,3.76725843]
[1772316117261,4.2967318,84.629,84.582,3.76725843]
[1772316117742,4.2967318,84.619,84.581,11.82298624]
[1772316118143,4.2967318,84.617,84.576,11.82361853]
[1772316118962,4.2967318,84.637,84.61,8.027517]
[1772316120846,4.2967318,84.635,84.601,11.8201203]
[1772316121360,4.2967318,84.675,84.631,3.76725843]
[1772316121672,7.39562929,84.688,84.665,6.17361976]
[1772316121850,7.39562929,84.688,84.67,8.027517]
[1772316122166,3.42837086,84.688,84.68,8.027517]
[1772316122668,3.42837086,84.688,84.67,8.027517]
[1772316122669,7.92837086,84.688,84.67,8.027517]
[1772316122849,4.5,84.687,84.666,11.81111662]
[1772316123170,3.42837086,84.688,84.67,8.027517]
[1772316123766,3.42837086,84.688,84.665,6.17361976]
[1772316123967,4.5,84.687,84.665,17.98476372]
[1772316124176,4.5,84.687,84.67,8.027517]
[1772316124666,4.5,84.687,84.665,6.17361976]
[1772316125848,4.5,84.687,84.666,11.81111662]
[1772316126170,3.42837086,84.688,84.67,8.027517]
[1772316128662,4.5,84.686,84.66,8.027517]
[1772316129069,4.5,84.686,84.66,19.83947069]
[1772316129665,4.5,84.684,84.65,8.027517]
[1772316129867,3.42837086,84.688,84.66,8.027517]
[1772316130446,4.5,84.714,84.68,8.027517]
[1772316130658,4.5,84.712,84.68,8.027517]
[1772316130863,4.5,84.734,84.7,8.027517]
[1772316131059,4.5,84.734,84.681,41.33158559]
[1772316131060,4.5,84.734,84.72,8.027517]
[1772316131371,4.5,84.734,84.71,8.027517]
[1772316131557,4.5,84.734,84.72,8.027517]
[1772316132279,4.5,84.734,84.71,8.027517]
[1772316133658,4.5,84.732,84.7,8.027517]
[1772316133859,4.5,84.732,84.68,42.51280054]
[1772316134171,4.5,84.732,84.7,8.027517]
[1772316135075,16.30205591,84.731,84.71,8.027517]
[1772316135279,4.5,84.73,84.71,8.027517]
[1772316136163,4.5,84.747,84.72,8.027517]
[1772316136471,4.5,84.747,84.681,12.09334759]
[1772316136472,4.5,84.747,84.73,8.027517]
[1772316136679,4.5,84.747,84.72,8.027517]
[1772316137189,4.5,84.747,84.691,1.180763]
[1772316137190,11.79899236,84.753,84.73,8.027517]
[1772316137377,4.5,84.766,84.74,8.027517]
[1772316138164,11.89001396,84.755,84.723,29.50765978]
[1772316138376,4.5,84.754,84.73,8.027517]
[1772316138760,4.5,84.754,84.74,8.027517]
[1772316139177,7.39001396,84.755,84.74,8.027517]
[1772316140076,4.5,84.754,84.73,8.027517]
[1772316140267,4.5,84.752,84.718,11.80380792]
[1772316140578,4.5,84.752,84.712,11.80457796]
[1772316141480,4.5,84.75,84.72,8.027517]
[1772316142763,4.5,84.75,84.7,8.027517]
[1772316142764,4.5,84.748,84.7,8.027517]
[1772316142971,4.5,84.746,84.7,8.027517]
[1772316143159,4.5,84.744,84.7,8.027517]
[1772316143363,4.5,84.742,84.7,8.027517]
[1772316143579,4.5,84.739,84.701,11.80623605]
[1772316143780,4.5,84.737,84.701,11.80623605]
[1772316144764,4.5,84.737,84.71,8.027517]
[1772316144964,4.5,84.749,84.72,8.027517]
[1772316145466,11.79968848,84.748,84.72,19.83110248]
[1772316145964,16.29968848,84.748,84.72,19.83110248]
[1772316146684,4.5,84.747,84.72,19.83110248]
[1772316147390,11.89001396,84.755,84.73,8.027517]
[1772316147599,11.89001396,84.755,84.72,11.80358548]
[1772316147600,4.5,84.775,84.74,8.027517]
[1772316147904,0.1,84.78,84.76,8.027517]
[1772316149192,4.5,84.778,84.74,8.027517]
[1772316149390,4.5,84.759,84.72,8.027517]
[1772316149591,11.79537385,84.779,84.711,11.80484234]
[1772316149592,4.5,84.749,84.711,11.80484234]
[1772316149808,4.5,84.748,84.711,11.80484234]
[1772316150985,4.5,84.748,84.711,41.3169482]
[1772316151302,4.5,84.748,84.72,8.02929895]
[1772316152698,4.5,84.748,84.72,11.80357358]
[1772316153001,4.5,84.746,84.72,11.80357358]
[1772316153788,4.5,84.746,84.692,1.18074906]
[1772316153789,4.5,84.739,84.7,8.02929895]
[1772316155604,4.5,84.737,84.701,11.80623605]
[1772316156400,4.5,84.736,84.701,11.80623605]
[1772316157796,4.5,84.736,84.71,8.02929895]
[1772316158001,4.5,84.744,84.71,8.02929895]
[1772316158792,4.5,84.752,84.72,8.02929895]
[1772316159000,4.5,84.76,84.73,8.02929895]
[1772316159585,4.5,84.76,84.74,8.02929895]
[1772316160695,4.5,84.76,84.73,8.02929895]
[1772316161201,4.5,84.758,84.72,8.02929895]
[1772316161399,4.5,84.739,84.69,8.02929895]
[1772316161602,4.5,84.739,84.691,11.80763009]
[1772316161804,4.5,84.737,84.691,11.80763009]
[1772316162397,4.5,84.729,84.69,8.02929895]
[1772316163590,4.5,84.729,84.681,41.33158559]
[1772316163807,4.5,84.727,84.691,11.80763009]
[1772316166613,4.5,84.727,84.691,41.32670531]
[1772316166916,4.5,84.709,84.672,11.81027966]
[1772316168315,4.5,84.699,84.66,8.02929895]
[1772316168711,4.5,84.697,84.661,11.81181417]
[1772316169810,8.02929895,84.7,84.661,11.81181417]
[1772316169811,4.5,84.711,84.661,11.81181417]
[1772316170116,4.5,84.719,84.68,8.02929895]
[1772316170312,4.5,84.709,84.67,8.02929895]
[1772316172119,4.5,84.718,84.69,8.02929895]
[1772316172319,4.5,84.717,84.69,8.02929895]
[1772316173403,4.5,84.717,84.68,8.02929895]
[1772316175726,4.5,84.715,84.681,11.80902445]
[1772316178634,4.5,84.709,84.661,0.5]
[1772316178819,4.5,84.707,84.66,37.55884807]
[1772316179018,8.02929895,84.71,84.66,37.55884807]
[1772316179019,4.5,84.705,84.662,11.81167465]
[1772316179220,4.5,84.703,84.662,11.81167465]
[1772316179621,4.5,84.702,84.662,11.81167465]
[1772316180325,4.5,84.699,84.662,11.81167465]
[1772316181432,1.18006631,84.7,84.68,8.02929895]
[1772316181635,1.18006631,84.726,84.69,8.02929895]
[1772316181838,4.5,84.74,84.72,8.02929895]
[1772316182828,4.5,84.748,84.721,11.80344896]
[1772316184145,4.5,84.756,84.74,8.02929895]
[1772316184826,1.27999997,84.768,84.75,8.02929895]
[1772316185135,1.27999997,84.768,84.76,8.02929895]
[1772316185327,0.1,84.78,84.76,8.02929895]
[1772316185922,4.5,84.812,84.77,8.02929895]
[1772316186628,41.25898855,84.83,84.75,8.02929895]
[1772316186629,4.5,84.799,84.75,8.02929895]
[1772316187040,4.5,84.797,84.76,8.02929895]
[1772316187431,4.5,84.807,84.78,8.02929895]
[1772316189017,4.5,84.807,84.78,19.82448891]
[1772316189223,4.5,84.815,84.79,8.02929895]
[1772316189526,4.5,84.815,84.77,8.02929895]
[1772316189725,4.5,84.809,84.77,8.02929895]
[1772316189924,4.5,84.809,84.76,8.02929895]
[1772316190149,3.69383402,84.835,84.755,41.29549879]
[1772316190150,4.5,84.838,84.8,8.02929895]
[1772316190440,4.5,84.838,84.78,8.02929895]
[1772316190441,0.1,84.84,84.83,8.02929895]
[1772316190949,2.45352276,84.891,84.833,4.45990526]
[1772316191128,11.78078318,84.884,84.85,8.02929895]
[1772316192128,1e-08,84.891,84.871,4.4]
[1772316192438,1e-08,84.891,84.87,8.02929895]
[1772316192647,1.06799995,84.924,84.881,4.4]
[1772316192852,4.17127121,84.922,84.88,8.02929895]
[1772316193033,4.17127121,84.92,84.88,8.02929895]
[1772316193231,4.17127121,84.889,84.839,4.4]
[1772316193440,4.17127121,84.889,84.85,8.02929895]
[1772316193937,4.17127121,84.9,84.87,8.02929895]
[1772316194443,4.17127121,84.9,84.841,0.28432314]
[1772316194444,4.17127121,84.91,84.88,8.02929895]
[1772316194838,4.17127121,84.922,84.89,8.02929895]
[1772316195155,15.94691207,84.922,84.89,8.02929895]
[1772316195357,4.17127121,84.921,84.887,4.4]
[1772316195535,4.17127121,84.921,84.91,8.02929895]
[1772316195735,4.17127121,84.921,84.9,8.02929895]
[1772316196142,4.17127121,84.921,84.89,8.02929895]
[1772316196345,4.19275844,84.909,84.846,4.4]
[1772316196653,11.77553552,84.922,84.846,4.4]
[1772316196654,4.19275844,84.889,84.846,4.4]
[1772316196949,41.21431463,84.922,84.822,11.78936976]
[1772316196950,4.19275844,84.859,84.822,11.78936976]
[1772316197138,4.19275844,84.857,84.822,11.78936976]
[1772316197329,4.19275844,84.857,84.812,11.79078432]
[1772316197739,4.19275844,84.849,84.812,11.79078432]
[1772316198448,58.89970061,84.891,84.82,8.02929895]
[1772316198449,4.19275844,84.859,84.82,8.02929895]
[1772316199153,4.19275844,84.859,84.822,4.4]
[1772316199550,4.19275844,84.859,84.83,8.02929895]
[1772316199753,4.19275844,84.871,84.84,8.02929895]
[1772316199933,4.19275844,84.871,84.85,8.02929895]
[1772316200351,4.19275844,84.871,84.84,8.02929895]
[1772316200840,4.19275844,84.879,84.831,4.4]
[1772316201051,4.19275844,84.869,84.83,8.02929895]
[1772316201355,4.19275844,84.869,84.831,11.78814348]
[1772316201752,11.78247809,84.872,84.84,8.02929895]
[1772316202357,4.19275844,84.871,84.841,11.78675404]
[1772316202754,4.19275844,84.859,84.823,11.78925527]
[1772316202953,4.19275844,84.859,84.822,4.4]
[1772316203160,4.19275844,84.859,84.82,8.02929895]
[1772316203368,4.19275844,84.849,84.81,8.02929895]
[1772316204562,4.19275844,84.839,84.803,11.79203565]
[1772316204958,4.19275844,84.839,84.803,16.19203565]
[1772316205264,4.19275844,84.882,84.831,4.4]
[1772316205566,4.19275844,84.882,84.85,8.02929895]
[1772316205772,4.19275844,84.879,84.83,8.02929895]
[1772316206138,4.19275844,84.879,84.84,8.02929895]
[1772316206537,4.19275844,84.869,84.831,11.78809217]
[1772316206752,4.19275844,84.869,84.819,4.4]
[1772316206753,4.19275844,84.869,84.82,19.81897119]
[1772316206957,4.19275844,84.859,84.82,19.81897119]
[1772316207156,8.02929895,84.85,84.815,11.79034297]
[1772316207366,41.23565587,84.878,84.794,4.4]
[1772316207367,4.19275844,84.839,84.794,4.4]
[1772316207567,4.19275844,84.829,84.8,8.02929895]
[1772316207767,4.19275844,84.829,84.793,11.79342634]
[1772316207977,4.19275844,84.829,84.8,8.02929895]
[1772316208189,4.19275844,84.865,84.821,4.4]
[1772316208479,4.19275844,84.863,84.83,8.02929895]
[1772316208672,4.19275844,84.863,84.831,11.78814348]
[1772316208878,4.19275844,84.863,84.83,8.02929895]
[1772316209084,4.19275844,84.863,84.831,11.78814348]
[1772316209964,4.19275844,84.863,84.84,8.02929895]
[1772316210574,4.19275844,84.873,84.85,8.02929895]
[1772316210769,4.19275844,84.873,84.841,11.78675404]
[1772316210975,4.19275844,84.873,84.836,11.78739185]
[1772316211172,4.19275844,84.873,84.84,8.02929895]
[1772316212473,4.19275844,84.873,84.813,1.17906453]
[1772316212474,8.02929895,84.86,84.82,8.02929895]
[1772316212778,4.19275844,84.859,84.81,8.02929895]
[1772316212960,4.19275844,84.859,84.82,8.02929895]
[1772316213361,4.19275844,84.859,84.82,8.01104566]
[1772316213886,4.19275844,84.859,84.83,8.01104566]
[1772316214174,4.19275844,84.876,84.84,12.41104566]
[1772316214376,4.19275844,84.876,84.84,8.01104566]
[1772316215176,11.7820324,84.875,84.841,11.78675404]
[1772316215475,4.19275844,84.874,84.841,11.78675404]
[1772316215662,11.77930675,84.895,84.86,12.41104566]
[1772316215862,11.77930675,84.895,84.87,8.01104566]
[1772316216588,4.19275844,84.894,84.85,8.01104566]
[1772316216785,11.77930675,84.895,84.85,8.01104566]
[1772316216786,4.19275844,84.889,84.85,8.01104566]
[1772316217670,4.19275844,84.887,84.851,11.78536493]
[1772316218560,4.19275844,84.908,84.88,8.01104566]
[1772316218760,11.78022806,84.956,84.851,42.42731375]
[1772316218761,4.19275844,84.935,84.9,8.01104566]
[1772316218981,4.19275844,84.935,84.91,8.01104566]
[1772316219205,4.19275844,84.929,84.9,8.01104566]
[1772316219484,11.77745324,84.908,84.861,4.4]
[1772316219662,4.19275844,84.899,84.85,8.01104566]
[1772316219968,4.19275844,84.889,84.85,8.01104566]
[1772316220280,4.19275844,84.899,84.86,8.01104566]
[1772316222282,4.19275844,84.897,84.86,8.01104566]
[1772316222484,4.19275844,84.897,84.861,11.78397614]
[1772316222859,4.19275844,84.897,84.86,8.01104566]
[1772316223065,4.19275844,84.889,84.851,11.78536294]
[1772316224374,11.78022806,84.888,84.86,8.01104566]
[1772316224771,4.19275844,84.889,84.86,8.01104566]
[1772316224977,4.41895182,84.9,84.87,8.01104566]
[1772316225488,0.1,84.93,84.891,4.24512613]
[1772316225671,0.1,84.93,84.92,8.01104566]
[1772316225873,0.1,84.93,84.91,8.01104566]
[1772316226076,0.1,84.93,84.92,8.01104566]
[1772316226275,0.1,84.97,84.91,8.01104566]
[1772316226276,4.41895182,84.947,84.91,8.01104566]
[1772316226478,4.17297794,84.945,84.91,8.01104566]
[1772316227692,4.17297794,84.939,84.9,8.01104566]
[1772316228396,4.17297794,84.937,84.901,11.77842428]
[1772316228889,4.17297794,84.937,84.91,8.01104566]
[1772316229194,4.17297794,84.952,84.93,8.01104566]
[1772316229394,11.7714918,84.951,84.92,8.01104566]
[1772316229689,11.7714918,84.951,84.921,4.3]
[1772316230189,11.7714918,84.951,84.92,8.01104566]
[1772316230190,4.17297794,84.95,84.92,8.01104566]
[1772316230495,4.17297794,84.948,84.92,8.01104566]
[1772316231483,4.17297794,84.948,84.896,4.3]
[1772316231688,4.17297794,84.939,84.9,8.01104566]
[1772316231888,4.17297794,84.939,84.91,8.01104566]
[1772316232573,11.77329346,84.938,84.91,8.01104566]
[1772316232773,4.17297794,84.937,84.91,8.01104566]
[1772316233069,4.17297794,84.937,84.91,19.7881998]
[1772316234486,4.17297794,84.954,84.922,11.77551164]
[1772316234691,0.1,84.97,84.941,4.3]
[1772316234874,4.17297794,84.983,84.95,8.01104566]
[1772316235073,4.17297794,84.959,84.91,8.01104566]
[1772316235274,4.17297794,84.949,84.902,11.77828555]
[1772316235593,4.17297794,84.949,84.91,8.01104566]
[1772316235778,4.17297794,84.949,84.903,4.3]
[1772316236694,4.17297794,84.939,84.9,8.01104566]
[1772316236894,4.17297794,84.939,84.901,11.77842428]
[1772316237298,4.17297794,84.939,84.901,16.07842428]
[1772316237597,4.17297794,84.949,84.91,8.01104566]
[1772316238485,4.17297794,84.939,84.9,8.01104566]
[1772316238694,11.77329346,84.938,84.901,11.77842428]
[1772316238886,4.17297794,84.937,84.901,11.77842428]
[1772316239190,4.17297794,84.937,84.91,8.01104566]
[1772316239494,4.17297794,84.937,84.901,45.52448498]
[1772316239794,8.01104566,84.95,84.911,4.3]
[1772316239999,4.17297794,84.982,84.941,4.3]
[1772316240307,4.17297794,84.982,84.95,8.01104566]
[1772316240477,4.17297794,84.982,84.915,3.69383402]
[1772316240478,4.17297794,84.979,84.931,4.3]
[1772316240677,8.01104566,85.02,84.921,11.77565031]
[1772316240678,4.17297794,84.957,84.921,11.77565031]
[1772316240877,4.17297794,84.968,84.931,4.3]
[1772316241274,15.94213726,84.968,84.931,4.3]
[1772316241680,4.17297794,84.966,84.931,4.3]
[1772316241876,11.76512112,84.997,84.96,8.01104566]
[1772316242080,4.17297794,84.996,84.96,8.01104566]
[1772316242301,11.76512112,84.997,84.94,8.01104566]
[1772316242302,4.17297794,84.979,84.94,8.01104566]
[1772316242880,4.17297794,84.977,84.941,11.77287764]
[1772316243198,4.17297794,84.977,84.94,8.01104566]
[1772316243898,4.17297794,84.977,84.95,8.01104566]
[1772316244695,58.8256056,84.997,84.94,11.77287928]
[1772316244696,4.17297794,84.989,84.96,8.01104566]
[1772316244895,4.17297794,84.989,84.951,4.3]
[1772316245102,4.17297794,84.989,84.951,16.07145129]
[1772316245103,11.76625696,84.989,84.951,16.07145129]
[1772316245309,4.17297794,84.988,84.951,16.07145129]
[1772316245691,4.17297794,84.988,84.96,8.01104566]
[1772316246002,4.17297794,84.988,84.938,30.61056299]
[1772316246003,4.17297794,84.988,84.95,8.01104566]
[1772316246204,4.17297794,84.979,84.94,19.78396237]
[1772316247123,4.17297794,84.949,84.898,4.3]
[1772316247401,4.17297794,84.949,84.911,4.3]
[1772316247697,4.17297794,84.939,84.9,8.01104566]
[1772316248888,11.77329346,84.938,84.901,11.77842428]
[1772316249205,4.17297794,84.937,84.901,11.77842428]
[1772316249617,4.17297794,84.969,84.93,8.01104566]
[1772316249902,4.17297794,84.949,84.91,8.01104566]
[1772316250615,4.17297794,84.939,84.901,11.77842428]
[1772316251410,4.17297794,84.937,84.901,11.77842428]
[1772316251987,4.17297794,84.937,84.875,3.69383402]
[1772316251988,4.17297794,84.919,84.88,8.01104566]
[1772316253397,4.17297794,84.917,84.881,11.78119956]
[1772316253583,4.17297794,84.909,84.862,4.3]
[1772316253782,4.17297794,84.909,84.86,8.01104566]
[1772316253783,4.17297794,84.899,84.863,11.78369843]
[1772316253997,41.21623212,84.918,84.851,4.3]
[1772316253998,4.17297794,84.889,84.851,4.3]
[1772316254196,8.01104566,84.88,84.853,11.78504057]
[1772316254402,4.17297794,84.879,84.853,11.78504057]
[1772316255302,4.17297794,84.877,84.847,11.78582925]
[1772316257209,11.78161596,84.878,84.82,12.48098241]
[1772316257210,4.09623444,84.859,84.82,12.48098241]
[1772316257508,4.09623444,84.859,84.821,11.78953325]
[1772316257702,4.09623444,84.849,84.821,4.26993675]
[1772316258010,4.09623444,84.873,84.841,4.26993675]
[1772316258905,11.09987062,84.914,84.851,4.26993675]
[1772316258906,4.09623444,84.885,84.851,4.26993675]
[1772316259107,11.78078318,84.884,84.851,4.26993675]
[1772316259502,4.09623444,84.879,84.828,4.26993675]
[1772316259702,4.09623444,84.879,84.841,4.26993675]
[1772316260805,11.78161596,84.878,84.842,16.05655186]
[1772316261001,11.78161596,84.878,84.84,8.01104566]
[1772316261002,4.09623444,84.877,84.82,0.2]
[1772316261213,8.01104566,84.83,84.82,1e-08]
[1772316261507,4.09623444,84.861,84.82,4.26993676]
[1772316261690,4.09623444,84.859,84.821,4.26993675]
[1772316262010,4.09623444,84.849,84.82,1e-08]
[1772316263006,8.01104566,84.84,84.82,1e-08]
[1772316263203,11.78578163,84.848,84.82,1e-08]
[1772316263412,4.09623444,84.847,84.82,1e-08]
[1772316264009,11.78578163,84.848,84.82,1e-08]
[1772316264315,11.78508232,84.854,84.82,12.28098242]
[1772316264704,4.09623444,84.853,84.82,1e-08]
[1772316264901,4.09623444,84.847,84.82,1e-08]
[1772316265911,4.09623444,84.858,84.821,4.26993675]
[1772316266115,4.09623444,84.858,84.83,12.28098241]
[1772316266311,11.78328187,84.866,84.84,8.01104566]
[1772316266514,29.45320653,84.881,84.84,8.01104566]
[1772316266515,11.78251167,84.872,84.841,4.26993675]
[1772316266906,41.23440609,84.881,84.843,4.26993675]
[1772316267423,4.09623444,84.869,84.832,4.26993675]
[1772316268493,4.09623444,84.869,84.833,4.26993675]
[1772316268918,4.09623444,84.869,84.835,4.26993675]
[1772316269705,11.78261547,84.871,84.835,4.26993675]
[1772316269905,11.78261547,84.871,84.841,4.26993675]
[1772316270306,11.78261547,84.871,84.84,8.01104566]
[1772316270307,12.1072801,84.87,84.831,4.26993675]
[1772316270503,4.09623444,84.869,84.831,4.26993675]
[1772316271303,29.4529989,84.881,84.832,11.78800452]
[1772316271304,4.09623444,84.867,84.832,11.78800452]
[1772316271514,4.09623444,84.867,84.833,4.26993675]
[1772316272219,4.09623444,84.859,84.823,4.26993675]
[1772316272923,8.01104566,84.85,84.823,4.26993675]
[1772316273319,15.88201607,84.848,84.82,1e-08]
[1772316274220,8.01245112,84.84,84.82,1e-08]
[1772316274717,11.78300419,84.868,84.831,4.26993675]
[1772316275420,4.09623444,84.878,84.841,4.26993675]
[1772316276631,8.01245112,84.87,84.841,4.26993675]
[1772316277312,4.09623444,84.869,84.833,4.26993675]
[1772316277622,8.01245112,84.86,84.823,4.26993675]
[1772316277807,4.09623444,84.859,84.82,8.01245113]
[1772316278125,4.09623444,84.859,84.821,11.78953325]
[1772316278700,4.09623444,84.867,84.831,4.26993675]
[1772316281825,4.09623444,84.878,84.841,4.26993675]
[1772316282006,11.78175477,84.877,84.841,4.26993675]
[1772316282206,4.09623444,84.876,84.841,4.26993675]
[1772316283712,4.09623444,84.874,84.842,11.78661511]
[1772316284716,4.3257072,84.869,84.831,11.78807323]
[1772316285037,4.3257072,84.849,84.82,11.78965909]
[1772316287237,4.3257072,84.849,84.82,1e-08]
[1772316287938,4.3257072,84.849,84.821,4.45158949]
[1772316288616,4.46426102,84.879,84.821,4.45158949]
[1772316288820,11.78473309,84.979,84.82,8.01245113]
[1772316288821,3.69383402,84.894,84.871,4.45158949]